Cogmind - Beta 15 @@@ ROGUE MODE // 2025.08.10 @ 19:27:26 Player: Cracklepappy Result: Destroyed by Y-54 Guardian with Gatling Laser Performance ------------- Evolutions (4) 2000 Regions Visited (15) 3000 Robots Destroyed (373) 1865 Value Destroyed (16246) 16246 Prototype IDs (13) 260 Alien Tech Used (0) 0 Bonus (7325) 7325 TOTAL SCORE: 30696 Bonus ------- High Alert Combat Kills 4803 Follower Combat Kills 1344 Entered Garrisons 1200 Friendly Fire -22 Cogmind --------- Core Integrity 0/850 Matter 300/300 Energy 479/800 System Corruption 1% Temperature Cool (4) Movement Rolling (108) Ox1 Location -6/Garrison Parts ------- > --- POWER (1) -------- Hybrid Deuterium Engine > --- PROPULSION (3) --- Compact Wheel Armored Wheel Armored Wheel > --- UTILITY (5) ------ Improved Cooling System High-capacity Storage Unit Advanced Targeting Computer Advanced Shield Generator Advanced Hacking Suite > --- WEAPON (6) ------- Gatling Laser Heavy Assault Rifle Gauss Rifle Plasma Cutter Powered Hammer > --- INVENTORY (20) --- Light Angular Momentum Engine Advanced Heat Sink Improved Cooling System Matter Compressor (250) IFF Parser Advanced Recoil Stabilizer Remote Datajack Peak State ------------ > --- POWER ------------ Particle Reactor > --- PROPULSION ------- Armored Wheel Armored Wheel Armored Wheel > --- UTILITY ---------- High-capacity Storage Unit Machine Analyzer Advanced Targeting Computer Advanced Recoil Stabilizer Advanced Hacking Suite > --- WEAPON ----------- Minigun Gauss Rifle Flak Gun Flak Gun Advanced Assault Cannon Mass Driver > --- INVENTORY -------- Hybrid Deuterium Engine Particle Reactor Armored Wheel Improved Cooling System Improved Cooling System Improved Coolant Injector Matter Compressor IFF Parser Advanced Recoil Stabilizer Advanced Shield Generator Gatling Laser Gatling Laser Gatling Laser Gatling Laser Gatling Laser Remote Datajack Plasma Cutter Powered Hammer [Rating: 66] Favorites ----------- Power Cooled Ion Engine Engine Cooled Ion Engine Power Core Neutrino Core Reactor Particle Reactor Propulsion Armored Wheel Wheel Armored Wheel Utility Advanced Targeting Computer Device Recoil Stabilizer Storage Huge Storage Unit Processor Advanced Targeting Computer Hackware Advanced Hacking Suite Protection Light Armor Plating Weapon Improved Assault Rifle Energy Gun Gatling Laser Energy Cannon Heavy Particle Cannon Ballistic Gun Improved Assault Rifle Ballistic Cannon Assault Cannon Launcher Missile Launcher Special Weapon Plasma Cutter Impact Weapon Powered Hammer Slashing Weapon Katana Build | -11 -10 -10 -9 -9 -9 -8 -8 -8 -8 -7 -7 -7 -7 -6 -6 ------- Run | Yrd Mat Min Mat Sto Gar Mat Gar Mat Gar Fac Gar Fac Gar Fac Gar Slots Evolved 8 | . . . 2 . . 2 . . . 2 . . . 2 . Power . | . . . . . . . . . . . . . . . . Propulsion 1 | . . . . . . . . . . . . . . 1 . Utility 3 | . . . . . . 1 . . . 1 . . . 1 . Weapon 4 | . . . 2 . . 1 . . . 1 . . . . . Parts Attached 183 | 8 22 6 20 12 1 18 9 10 9 6 12 2 21 2 25 Power 16 | 1 3 1 3 1 . . . 3 . . 2 . . . 2 Engine 13 | 1 3 1 3 1 . . . 3 . . . . . . 1 Core 1 | . . . . . . . . . . . 1 . . . . Reactor 2 | . . . . . . . . . . . 1 . . . 1 Propulsion 42 | 2 7 2 4 2 . 4 3 2 3 . 2 . 6 1 4 Treads . | . . . . . . . . . . . . . . . . Leg . | . . . . . . . . . . . . . . . . Wheel 42 | 2 7 2 4 2 . 4 3 2 3 . 2 . 6 1 4 Hover . | . . . . . . . . . . . . . . . . Flight . | . . . . . . . . . . . . . . . . Utility 41 | 2 6 2 4 3 . 2 1 3 2 3 1 2 5 1 4 Device 18 | 1 1 1 2 1 . 1 . 1 1 2 1 1 1 . 4 Storage 9 | 1 2 . 1 . . . . . 1 1 . . 3 . . Processor 7 | . . . 1 1 . 1 1 1 . . . 1 1 . . Hackware 3 | . . . . 1 . . . 1 . . . . . 1 . Protection 4 | . 3 1 . . . . . . . . . . . . . Artifact . | . . . . . . . . . . . . . . . . Weapon 84 | 3 6 1 9 6 1 12 5 2 4 3 7 . 10 . 15 Energy Gun 10 | 2 1 . . . . . . . . . . . . . 7 Energy Cannon 3 | . . . 1 . . 2 . . . . . . . . . Ballistic Gun 53 | 1 4 1 2 6 . 9 4 1 3 3 5 . 7 . 7 Ballistic Cannon 9 | . . . 5 . . . . . . . 2 . 1 . 1 Launcher 3 | . . . 1 . . . . 1 . . . . 1 . . Special Weapon 3 | . . . . . . . 1 . 1 . . . 1 . . Impact Weapon 2 | . 1 . . . . 1 . . . . . . . . . Slashing Weapon 1 | . . . . . 1 . . . . . . . . . . Piercing Weapon . | . . . . . . . . . . . . . . . . Special Melee Weapon . | . . . . . . . . . . . . . . . . Unidentified Prototypes 4 | . . . 3 1 . . . . . . . . . . . Corrupted Parts 1 | . . . . . . . . . . . . . . . 1 System Corruption 1 | . . . . . . . . . . . . . . . 1 Parts Lost 44 | . 8 . 3 1 . . . . 2 1 . . 3 . 26 Power 2 | . . . . . . . . . . . . . . . 2 Propulsion 11 | . 4 . 1 . . . . . . . . . 2 . 4 Utility 6 | . 2 . . 1 . . . . . 1 . . . . 2 Weapon 25 | . 2 . 2 . . . . . 2 . . . 1 . 18 Highest Loss Streak 19 | . 3 . 2 1 . . . . 2 1 . . 2 . 19 To Critical Strikes 1 | . . . . . . . . . . . . . . . 1 Average Backups 21 | 5 14 19 24 24 24 22 24 24 24 20 18 19 19 18 11 Power . | . 1 1 1 1 1 . . . . . . 1 . 1 . Propulsion 2 | 3 2 3 2 2 2 2 2 2 3 4 3 2 1 1 . Utility 8 | . 5 8 11 9 9 8 9 9 8 6 6 6 7 8 5 Weapon 9 | 1 4 6 8 10 11 11 12 11 10 8 7 8 8 6 2 Tool/Special . | . . . . . . . . . . . . . . . . Unused Backups 83 | 3 14 6 9 5 . 13 4 2 6 2 6 3 6 . 4 Power 3 | . 1 . . . . . . . . . . . 1 . 1 Propulsion 19 | 3 4 1 1 2 . . 3 . 4 1 . . . . . Utility 34 | . 7 4 4 2 . 5 . 2 1 . 3 . 3 . 3 Weapon 26 | . 2 1 4 1 . 7 1 . 1 1 3 3 2 . . Tool/Special 1 | . . . . . . 1 . . . . . . . . . Average Slot Usage (%) 98 | . 98 100 99 99 100 99 100 99 99 99 97 92 96 99 87 Engine 7 | . 14 14 11 11 11 9 9 9 9 7 . . . . 3 Reactor 1 | . . . . . . . . . . . 4 . 4 6 2 Wheel 18 | . 26 28 22 21 22 17 18 18 18 15 15 15 14 20 14 Device 7 | . 3 9 9 10 . 8 1 . 9 14 15 7 6 4 9 Storage 9 | . 14 14 11 11 11 9 9 9 9 7 7 7 7 6 6 Processor 8 | . . . . . 11 9 16 17 9 7 7 14 15 20 8 Ballistic Gun 31 | . 21 27 6 34 39 41 42 44 42 37 26 29 33 33 18 Ballistic Cannon 5 | . . . 36 9 . . . . . . 1 7 3 6 2 Special Weapon 1 | . . . . . . . . . 1 7 8 . 2 . 2 Impact Weapon 1 | . 1 . . . . 1 2 . . . 5 . 1 . 3 Peak Build Rating 66 | 7 12 12 27 27 26 34 38 41 40 45 58 54 58 62 66 Average Rating 34 | 5 9 11 24 26 25 32 35 39 39 44 49 53 51 61 50 On Entrance 32 | . 7 12 12 26 26 26 34 37 40 39 44 53 52 55 62 Naked Turns . | . . . . . . . . . . . . . . . . Heaviest Build 109 | 13 56 56 109 107 100 105 106 108 109 71 91 89 94 85 89 Greatest Support 40 | 20 20 20 22 22 22 22 24 24 24 24 24 24 24 36 40 Greatest Overweight (x) 5 | . 2 2 5 4 4 4 4 4 4 2 3 3 3 2 5 Average Overweight (x) 3 | . 1 2 3 4 4 2 4 4 4 2 2 3 3 2 2 Largest Inventory Capacity 25 | 8 20 20 25 25 25 25 25 25 25 25 20 20 20 20 20 Average Capacity 22 | 6 16 20 24 25 25 22 25 25 25 20 20 20 20 20 20 Most Carried 25 | 8 20 20 25 25 25 25 25 25 25 24 20 20 20 19 20 Average Carried 21 | 5 14 19 24 24 24 22 24 24 24 19 19 19 19 18 11 Final Capacity 25 | 8 20 20 25 25 25 25 25 25 25 20 20 20 20 20 20 Final Carried 25 | 8 20 20 25 25 25 25 25 25 25 20 20 20 20 18 7 Class Distribution -------------------- 34% | Gunner 14% | Scavenger-Gunner 13% | Scavenger-Executioner 11% | Commander-Executioner 10% | Commander-Gunner 9% | Mutant 3% | Executioner Dominant Class ---------------- Mutant | -10/Materials Mutant | -10/Mines Gunner | -9/Materials Gunner | -9/Storage Commander-Gunner | -9/Garrison Gunner | -8/Materials Gunner | -8/Garrison Scavenger-Gunner | -8/Materials Scavenger-Gunner | -8/Garrison Scavenger-Executioner | -7/Factory Commander-Executioner | -7/Garrison Commander-Executioner | -7/Factory Scavenger-Executioner | -7/Garrison Scavenger-Executioner | -6/Factory Scavenger-Executioner | -6/Garrison Resources | -11 -10 -10 -9 -9 -9 -8 -8 -8 -8 -7 -7 -7 -7 -6 -6 ----------- Run | Yrd Mat Min Mat Sto Gar Mat Gar Mat Gar Fac Gar Fac Gar Fac Gar Matter Collected 15432 | 349 961 445 1485 1403 420 1262 1088 549 1644 188 464 519 3000 . 1655 Remotely . | . . . . . . . . . . . . . . . . Salvage Created 15191 | 286 683 163 1113 1746 429 1972 1191 821 1984 218 235 390 2540 . 1420 Parts 846 | 19 65 18 83 105 36 118 75 54 104 9 2 23 102 . 33 Haulers Intercepted 25 | . 2 . 4 6 . 6 . 6 . . . 1 . . . Recyclers Shooed 4 | . . . 1 1 . . . 2 . . . . . . . Parts Field Recycled . | . . . . . . . . . . . . . . . . Retrieved Matter . | . . . . . . . . . . . . . . . . Parts Self-Destructed . | . . . . . . . . . . . . . . . . Prevented . | . . . . . . . . . . . . . . . . Kills | -11 -10 -10 -9 -9 -9 -8 -8 -8 -8 -7 -7 -7 -7 -6 -6 ------- Run | Yrd Mat Min Mat Sto Gar Mat Gar Mat Gar Fac Gar Fac Gar Fac Gar Combat Hostiles Destroyed 265 | . 17 4 25 25 16 29 24 5 37 4 . 8 46 . 25 Melee 1 | . . . . . . . . . . . . . . . 1 Guns 195 | . 17 4 10 15 11 27 24 5 30 4 . 2 26 . 20 Cannons 40 | . . . 13 7 . 2 . . . . . 2 13 . 3 AOE 28 | . . . 2 3 5 . . . 7 . . 4 7 . . Classes Destroyed 20 | 3 7 1 1 1 . 3 . . 2 . . 1 . . 1 Worker 17 | 2 1 . 2 1 . 8 . 2 . . . 1 . . . Builder 14 | . 2 . 4 1 . 4 . 1 . . . 2 . . . Tunneler 10 | 7 1 2 . . . . . . . . . . . . . Hauler 25 | . 2 . 4 6 . 6 . 6 . . . 1 . . . Recycler 16 | 1 1 . 3 7 . 1 . 2 . . . 1 . . . Carrier 1 | . . . . . . . . . 1 . . . . . . Mechanic 3 | . . . . 2 . . . . . . 1 . . . . Operator 5 | . 1 . 1 . . 2 . 1 . . . . . . . Watcher 11 | . 2 . 3 1 . 2 . 2 . . . . 1 . . Swarmer 91 | . 8 2 12 9 7 7 12 1 13 . . 1 15 . 4 Grunt 95 | . 7 . 7 5 7 10 4 2 15 3 . 4 21 . 10 Brawler 4 | . . . . . . 1 . . 2 . . . . . 1 Duelist 4 | . . . 1 . . . . . . . . . 2 . 1 Protector 2 | . . . . . . . . . . . . 1 . . 1 Sentry 46 | . . 2 5 11 2 7 4 2 5 1 . . 4 . 3 Demolisher 1 | . . . . . . . . . . . . . . . 1 Specialist 4 | . . . . . . 1 2 . . . . 1 . . . Hunter 12 | . . . . . . 4 2 . . . . . 1 . 5 Programmer 8 | . . . . . . . . . 2 . . 2 4 . . Subdweller 2 | . 2 . . . . . . . . . . . . . . Thug 1 | . . . . . . . . . . . . . 1 . . Guerrilla 1 | . . . . . . . . . . . . 1 . . . Best Kill Streak 11 | 4 6 2 11 5 4 6 6 2 5 4 1 11 10 . 9 Combat Bots Only 10 | . 3 2 6 4 4 6 6 1 5 4 . 7 10 . 9 Max Kills in Single Turn 5 | 1 2 1 3 3 2 2 2 2 3 1 1 5 2 . 2 Gunslinging 1 | . . . . . 1 . 1 . 1 . . . . . 1 Exploded 3 | . . . 1 3 2 . . . 3 . . 2 2 . . Melee 1 | . . . . . . . . . . . . . . . 1 Uniques/NPCs Destroyed . | . . . . . . . . . . . . . . . . Combat | -11 -10 -10 -9 -9 -9 -8 -8 -8 -8 -7 -7 -7 -7 -6 -6 -------- Run | Yrd Mat Min Mat Sto Gar Mat Gar Mat Gar Fac Gar Fac Gar Fac Gar Hostile Shots Fired 1105 | . 103 13 80 37 25 84 56 17 70 56 . 18 166 . 380 Missed 330 | . 26 4 23 9 11 25 9 4 19 17 . 5 58 . 120 Hits 775 | . 77 9 57 28 14 59 47 13 51 39 . 13 108 . 260 Melee 9 | . . . 1 . . . . . . . . . 1 . 7 Projectile 766 | . 77 9 56 28 14 59 47 13 51 39 . 13 107 . 253 AOE 5 | . 1 . . . . . . . . . . . . . 4 Critical Strikes 21 | . . 2 . 1 . . 2 . 4 . . 1 3 . 8 Damage Taken 10820 | . 1003 132 685 470 140 761 549 232 762 310 93 333 1516 . 3834 Core 1670 | . 220 . 73 59 15 93 57 . 89 21 31 52 107 . 853 Absorbed by Shields 177 | . . . . . 3 . . . . . . . 99 . 75 Redirected to Shielding 4 | . 4 . . . . . . . . . . . . . . Regen/Repaired (Parts) 262 | . . . 105 54 . 63 . 40 . . . . . . . Core Remaining (%) 60 | 100 . 12 . . 63 . . . 56 . . . 69 . . Volleys Fired 1051 | 23 83 12 57 66 28 74 67 23 154 9 34 14 285 . 122 Largest 6 | 2 2 2 4 4 4 5 5 5 5 5 3 5 6 . 6 Hottest 407 | 60 60 46 148 134 92 167 125 135 137 131 78 168 176 . 407 Shots Fired 2779 | 46 163 23 186 236 76 362 259 111 353 41 42 38 538 . 305 Gun 2101 | 46 163 23 60 196 72 332 252 110 269 40 13 24 272 . 229 Cannon 284 | . . . 124 40 . 30 . . . . . 10 56 . 24 Launcher 24 | . . . 2 . 4 . . 1 5 . . 4 8 . . Special 370 | . . . . . . . 7 . 79 1 29 . 202 . 52 Kinetic 2258 | 23 136 22 183 236 72 332 252 110 269 40 13 34 328 . 208 Thermal 420 | 23 . . 1 . . 30 . . 77 . 10 . 182 . 97 Explosive 24 | . . . 2 . 4 . . 1 5 . . 4 8 . . Electromagnetic 28 | . 27 1 . . . . . . . . . . . . . Robot Hit Streak 59 | 9 9 11 8 22 7 19 23 12 18 30 59 13 26 . 32 Robot Miss Streak 9 | 3 5 4 7 3 3 5 3 5 4 1 1 2 9 . 7 Penetration Max 1 | . . . . . . . 1 1 1 1 . 1 1 . 1 Secondary Targets 31 | . 5 . . . 4 2 4 . 9 2 . . 1 . 4 Max Gunslinging Chain 1 | . 1 . . . 1 1 1 . 1 1 . . 1 . 1 Shots Hit Robots 1759 | 29 105 16 79 146 37 212 171 56 210 37 44 22 364 . 231 Core Hits 834 | 11 45 9 47 59 21 83 63 25 98 9 7 23 180 . 154 Critical Kills 4 | . . . . . . 1 . . 2 . . . 1 . . Critical Parts Destroyed 11 | . 1 . . 2 1 1 1 . . . . . 1 . 4 Critical Strikes 38 | . 1 . 4 2 1 3 1 . 7 . . 1 12 . 6 Destroy 15 | . 1 . . 2 1 2 1 . 3 . . . 2 . 3 Blast 10 | . . . 4 . . . . . . . . 1 4 . 1 Smash 2 | . . . . . . 1 . . . . . . . . 1 Sever 11 | . . . . . . . . . 4 . . . 6 . 1 Melee Attacks 136 | . 11 . 6 . 17 4 18 3 1 . 24 . 35 . 17 Impact 119 | . 11 . 6 . . 4 18 3 1 . 24 . 35 . 17 Slashing 17 | . . . . . 17 . . . . . . . . . . Piercing . | . . . . . . . . . . . . . . . . Sneak Attacks 4 | . . . 1 . . 1 . 2 . . . . . . . Combat Hostiles . | . . . . . . . . . . . . . . . . Follow-up Attacks . | . . . . . . . . . . . . . . . . Damage Inflicted 33417 | 362 1539 261 2150 2632 813 3635 2012 1295 3758 737 879 1955 7288 . 4101 Guns 20996 | 362 1504 261 417 1999 581 3004 2012 1151 2501 737 225 271 2947 . 3024 Cannons 4676 | . . . 1294 445 . 550 . . . . . 350 1758 . 279 Explosions 3104 | . 35 . 268 188 232 . . . 436 . . 1334 611 . . Melee 1233 | . . . 171 . . 81 . 144 . . 543 . 26 . 268 Ramming . | . . . . . . . . . . . . . . . . Kinetic 23749 | 186 1302 261 1711 2444 581 3004 2012 1151 2501 737 225 621 4705 . 2308 Thermal 5725 | 176 35 . . . . 550 . . 821 . 111 561 1946 . 1525 Explosive 2508 | . . . 268 188 232 . . . 436 . . 773 611 . . Electromagnetic 202 | . 202 . . . . . . . . . . . . . . Impact 1233 | . . . 171 . . 81 . 144 . . 543 . 26 . 268 Slashing . | . . . . . . . . . . . . . . . . Piercing . | . . . . . . . . . . . . . . . . Highest Corruption 2 | . 1 1 . . . . . . 1 . . 1 2 . 1 Average Corruption 1 | . 1 1 . . . . . . 1 . . 1 1 . 1 Corruption Purged . | . . . . . . . . . . . . . . . . Corruption Blocked . | . . . . . . . . . . . . . . . . Effects 43 | . 11 . . . . . . . 12 . . . 17 . 3 Message Errors 11 | . 1 . . . . . . . 3 . . . 5 . 2 Matter Fused 9 | . 2 . . . . . . . 4 . . . 3 . . Heat Flow Errors 8 | . 3 . . . . . . . 1 . . . 3 . 1 Energy Discharges 2 | . 1 . . . . . . . 1 . . . . . . Data Loss (minor) 6 | . 2 . . . . . . . . . . . 4 . . Data Loss (major) 4 | . 2 . . . . . . . 1 . . . 1 . . Misfires 1 | . . . . . . . . . 1 . . . . . . Alerts 1 | . . . . . . . . . . . . . 1 . . Weapon Failures 1 | . . . . . . . . . 1 . . . . . . Overload Shots . | . . . . . . . . . . . . . . . . Overflow Damage 907 | . . . 101 2 . 96 . . 6 . 268 195 217 . 22 Projectiles 332 | . . . 11 . . 15 . . 6 . . 84 213 . 3 Explosions 206 | . . . 89 2 . . . . . . . 111 4 . . Melee 369 | . . . 1 . . 81 . . . . 268 . . . 19 Knockbacks 22 | . . . 7 . . . . . . . 1 1 8 . 5 Impact 2 | . . . 1 . . . . . . . 1 . . . . Kinetic 19 | . . . 6 . . . . . . . . 1 8 . 4 Secondary 1 | . . . . . . . . . . . . . . . 1 Self-Inflicted Damage 176 | . . . 70 58 . . . . . . . . 48 . . Shots 4 | . . . 1 1 . . . . . . . . 2 . . Rammed . | . . . . . . . . . . . . . . . . Targets Rammed . | . . . . . . . . . . . . . . . . Kicked . | . . . . . . . . . . . . . . . . Crushed . | . . . . . . . . . . . . . . . . Highest Temperature 361 | 20 233 32 361 114 42 98 108 147 301 6 . 326 312 . 215 Average Temperature 55 | 20 44 18 83 25 16 21 41 39 73 3 . 94 80 . 63 Received Heat Transfer 3183 | . 246 63 129 93 48 225 108 54 297 105 . 117 486 . 1212 Siege Activations . | . . . . . . . . . . . . . . . . Martial Activations . | . . . . . . . . . . . . . . . . Shielding Activations . | . . . . . . . . . . . . . . . . Robots Disrupted . | . . . . . . . . . . . . . . . . Combat Hostiles . | . . . . . . . . . . . . . . . . Robots Corrupted 5 | . . . 1 . . 1 . . . . 2 . . . 1 Combat Hostiles 3 | . . . . . . . . . . . 2 . . . 1 Parts Fried 4 | . 1 . . . . 1 . . . . 1 . . . 1 Impact Corruptions 11 | . . . 1 . . 3 . . . . 5 . . . 2 Robots Melted . | . . . . . . . . . . . . . . . . Combat Hostiles . | . . . . . . . . . . . . . . . . Parts Melted 3 | . . . . . 1 . . . . . . . . . 2 Heat Transferred 15250 | 400 50 . . . . 851 . . 2775 . 370 400 6512 . 3892 Parts Sabotaged . | . . . . . . . . . . . . . . . . Parts Stolen . | . . . . . . . . . . . . . . . . Parts Stripped . | . . . . . . . . . . . . . . . . Power Chain Reactions 1 | . 1 . . . . . . . . . . . . . . Alert | -11 -10 -10 -9 -9 -9 -8 -8 -8 -8 -7 -7 -7 -7 -6 -6 ------- Run | Yrd Mat Min Mat Sto Gar Mat Gar Mat Gar Fac Gar Fac Gar Fac Gar Maximum Alert Level 5 | . . . 1 2 4 3 5 3 5 4 5 4 5 5 5 Low Security (%) 25 | 100 100 100 99 47 . . . . . . . . . . . Level 1 5 | . . . . 51 14 . . . . . . . . . . Level 2 15 | . . . . 1 16 92 13 26 8 . . . . . . Level 3 16 | . . . . . 40 7 38 73 17 . 22 64 7 . . Level 4 18 | . . . . . 27 . 34 . 40 100 41 35 10 . 98 Level 5 18 | . . . . . . . 12 . 33 . 35 . 81 100 1 High Security . | . . . . . . . . . . . . . . . . Max Security . | . . . . . . . . . . . . . . . . Peak Influence 3494 | 15 143 40 200 419 1357 719 1766 1047 2340 1261 1947 1270 3494 1834 1608 Initial 1834 | . . 30 . 61 270 661 432 860 507 1228 875 1022 889 1834 1255 Average 923 | 2 50 9 119 200 792 636 1075 821 1423 1201 1410 1041 2203 1817 1405 Influence Increases 14240 | 50 515 90 882 1095 1187 1069 1374 806 1913 133 1072 586 2695 . 773 Destroy 0b10 Robot/C 6180 | . 300 80 500 560 480 620 540 340 920 80 . 220 1040 . 500 Destroy 0b10 Robot/NC 695 | 50 50 10 85 95 . 135 15 85 30 . 15 45 60 . 20 Destroy Leader 996 | . 68 . 114 196 10 200 30 120 60 20 . 48 70 . 60 Allied During Kill 935 | . . . . 79 174 52 20 126 75 16 4 140 213 . 36 Successful Hack 267 | . 4 . 40 30 14 19 30 46 28 14 14 14 14 . . Disable Machine 495 | . . . 75 105 30 15 45 45 15 . 45 75 45 . . Anti-Garrison Action 3700 | . . . . . 400 . 500 . 650 . 950 . 1100 . 100 Destroy Structure 522 | . 18 . 53 30 64 13 59 14 60 3 44 44 108 . 12 Partial Spotted 15 | . 15 . . . . . . . . . . . . . . Lose Combat Pursuer 435 | . 60 . 15 . 15 15 135 30 75 . . . 45 . 45 Influence Decreases 12632 | 50 437 168 737 824 246 1760 274 1792 353 1222 376 1263 471 1700 959 Entered New Map 7380 | . . 48 . 84 146 696 234 906 273 1112 376 925 381 1660 539 Time Decay 3249 | 50 387 120 594 580 . 644 . 416 . 100 . 318 . 40 . Lost Part 410 | . 50 . 30 10 . . . . 20 10 . . 30 . 260 Lost Ally 590 | . . . 10 . 100 120 40 20 60 . . 20 60 . 160 Purge Threat 1003 | . . . 103 150 . 300 . 450 . . . . . . . Squads Dispatched 28 | . 3 . 1 7 . 8 . . . 3 . 5 . 1 . Investigation 11 | . . . . 3 . 3 . . . 2 . 2 . 1 . Extermination 1 | . . . . . . . . . . . . 1 . . . Reinforcement 9 | . 3 . 1 . . 5 . . . . . . . . . Assault 1 | . . . . . . . . . . . . 1 . . . Garrison 6 | . . . . 4 . . . . . 1 . 1 . . . Intercept . | . . . . . . . . . . . . . . . . Searches Triggered . | . . . . . . . . . . . . . . . . Construction Impeded 1 | . . . . . . 1 . . . . . . . . . Haulers Reinforced . | . . . . . . . . . . . . . . . . Active Scanning Responses . | . . . . . . . . . . . . . . . . Cargo Convoy Interrupts . | . . . . . . . . . . . . . . . . Stealth | -11 -10 -10 -9 -9 -9 -8 -8 -8 -8 -7 -7 -7 -7 -6 -6 --------- Run | Yrd Mat Min Mat Sto Gar Mat Gar Mat Gar Fac Gar Fac Gar Fac Gar Distress Signals 14 | . 1 . 3 2 . 4 . 1 . . . 1 2 . . Communications Jammed . | . . . . . . . . . . . . . . . . Distress Signals . | . . . . . . . . . . . . . . . . Times Spotted 367 | . 34 5 37 34 24 42 27 22 39 4 1 13 51 . 34 Peak Tracking Total 7 | . 5 3 4 4 4 5 5 4 6 3 . 7 7 . 7 Tactical Retreats 18 | . 2 . 1 . 1 1 4 1 3 . . . 3 . 2 Traps | -11 -10 -10 -9 -9 -9 -8 -8 -8 -8 -7 -7 -7 -7 -6 -6 ------- Run | Yrd Mat Min Mat Sto Gar Mat Gar Mat Gar Fac Gar Fac Gar Fac Gar Traps Triggered 42 | . 3 . 1 2 9 1 10 1 4 1 2 1 5 . 2 Indirectly . | . . . . . . . . . . . . . . . . Trap Hack Attempts . | . . . . . . . . . . . . . . . . Triggered . | . . . . . . . . . . . . . . . . Disarmed . | . . . . . . . . . . . . . . . . Reprogrammed . | . . . . . . . . . . . . . . . . Reused . | . . . . . . . . . . . . . . . . Traps Extracted . | . . . . . . . . . . . . . . . . Installed . | . . . . . . . . . . . . . . . . Triggered . | . . . . . . . . . . . . . . . . Machines | -11 -10 -10 -9 -9 -9 -8 -8 -8 -8 -7 -7 -7 -7 -6 -6 ---------- Run | Yrd Mat Min Mat Sto Gar Mat Gar Mat Gar Fac Gar Fac Gar Fac Gar Machines Disabled 63 | . . . 5 7 7 1 9 3 8 . 8 5 9 . 1 Max in Single Turn 3 | . . . 1 2 1 1 1 1 1 . 1 3 1 . 1 Garrison Relay 29 | . . . . . 5 . 6 . 6 . 5 . 6 . 1 Phase Generator 1 | . . . . . . . . . 1 . . . . . . Machines Repaired . | . . . . . . . . . . . . . . . . Machines Dismantled 3 | . . . . . . . . . 1 . 1 . 1 . . Machines Sabotaged . | . . . . . . . . . . . . . . . . Overloaded Fab Kills . | . . . . . . . . . . . . . . . . Hacking | -11 -10 -10 -9 -9 -9 -8 -8 -8 -8 -7 -7 -7 -7 -6 -6 --------- Run | Yrd Mat Min Mat Sto Gar Mat Gar Mat Gar Fac Gar Fac Gar Fac Gar Machines Accessed 71 | . 6 . 10 14 3 9 2 10 4 1 2 4 4 1 1 Terminals 56 | . 5 . 8 11 3 5 2 8 4 . 2 3 4 . 1 Fabricators . | . . . . . . . . . . . . . . . . Repair Stations 4 | . . . 1 1 . 1 . 1 . . . . . . . Recycling Units 3 | . 1 . 1 1 . . . . . . . . . . . Scanalyzers 2 | . . . . . . 2 . . . . . . . . . Garrison Access 6 | . . . . 1 . 1 . 1 . 1 . 1 . 1 . Total Hacks 203 | . 15 . 32 40 6 26 7 28 13 3 5 11 11 3 3 Successful 90 | . 7 . 16 21 4 15 3 14 3 1 2 1 2 1 . Failed 113 | . 8 . 16 19 2 11 4 14 10 2 3 10 9 2 3 Catastrophic 25 | . 2 . 1 4 1 3 1 3 3 . 2 4 1 . . Database Lockouts . | . . . . . . . . . . . . . . . . Manual 81 | . 12 . 16 14 2 9 4 14 4 2 1 2 1 . . Terminals 158 | . 14 . 22 33 6 12 7 24 13 . 5 8 11 . 3 Fabricators . | . . . . . . . . . . . . . . . . Repair Stations 18 | . . . 7 2 . 6 . 3 . . . . . . . Recycling Units 5 | . 1 . 3 1 . . . . . . . . . . . Scanalyzers 6 | . . . . . . 6 . . . . . . . . . Garrison Access 16 | . . . . 4 . 2 . 1 . 3 . 3 . 3 . Terminal Hacks 41 | . 1 . 2 13 3 6 2 10 2 . 1 . 1 . . Part Schematic 8 | . . . . 6 . 1 . 1 . . . . . . . Robot Schematic 1 | . . . . . . . . 1 . . . . . . . Robot Analysis 1 | . . . . . . . . 1 . . . . . . . Prototype ID Bank 5 | . 1 . . 2 . 1 . 1 . . . . . . . Open Door 3 | . . . . 2 1 . . . . . . . . . . Branch Access Points 1 | . . . 1 . . . . . . . . . . . . Emergency Access Points 3 | . . . . . 1 . 1 . . . 1 . . . . Terminal Index 1 | . . . . . . . . 1 . . . . . . . Alert Level 2 | . . . . . . 1 . 1 . . . . . . . Unreport Threat 7 | . . . 1 1 . 2 . 3 . . . . . . . Locate Traps 2 | . . . . 1 . 1 . . . . . . . . . Zone Layout 2 | . . . . 1 . . . 1 . . . . . . . Garrison Registry 1 | . . . . . . . . . 1 . . . . . . Patrol Navigation 2 | . . . . . . . . . 1 . . . 1 . . Security Stations 2 | . . . . . 1 . 1 . . . . . . . . Fabricator Hacks . | . . . . . . . . . . . . . . . . Repair Station Hacks 12 | . . . 5 2 . 3 . 2 . . . . . . . Scan Component 7 | . . . 3 1 . 2 . 1 . . . . . . . Repair 5 | . . . 2 1 . 1 . 1 . . . . . . . Recycling Unit Hacks 2 | . 1 . 1 . . . . . . . . . . . . Retrieve Components 2 | . 1 . 1 . . . . . . . . . . . . Scanalyzer 4 | . . . . . . 4 . . . . . . . . . Insert Component 2 | . . . . . . 2 . . . . . . . . . Analyze 2 | . . . . . . 2 . . . . . . . . . Garrison Access Hacks 6 | . . . . 1 . 1 . 1 . 1 . 1 . 1 . Unlock Access 6 | . . . . 1 . 1 . 1 . 1 . 1 . 1 . Unauthorized Hacks 25 | . 5 . 8 5 1 1 1 1 1 . 1 . 1 . . Terminals 20 | . 5 . 7 2 1 . 1 1 1 . 1 . 1 . . Assimilate 1 | . . . 1 . . . . . . . . . . . . Botnet 3 | . . . . 2 . . . 1 . . . . . . . Operators 1 | . . . 1 . . . . . . . . . . . . Skim 10 | . 5 . 5 . . . . . . . . . . . . Override 5 | . . . . . 1 . 1 . 1 . 1 . 1 . . Fabricators . | . . . . . . . . . . . . . . . . Repair Stations . | . . . . . . . . . . . . . . . . Recycling Units 1 | . . . 1 . . . . . . . . . . . . Mask 1 | . . . 1 . . . . . . . . . . . . Scanalyzers . | . . . . . . . . . . . . . . . . Garrison Access 4 | . . . . 3 . 1 . . . . . . . . . Broadcast 1 | . . . . 1 . . . . . . . . . . . Redirect 1 | . . . . 1 . . . . . . . . . . . Reprogram 2 | . . . . 1 . 1 . . . . . . . . . Data Cores Recovered 2 | . . . 1 . . . . 1 . . . . . . . Used . | . . . . . . . . . . . . . . . . Hacking Detections 64 | . 6 . 9 13 1 8 2 8 4 1 2 4 4 1 1 Full Trace Events 14 | . . . . 1 . 1 1 . 3 1 1 2 2 1 1 Feedback Events 1 | . . . . . . . . . . . . . 1 . . Corruption 1 | . . . . . . . . . . . . . 1 . . Feedback Blocked . | . . . . . . . . . . . . . . . . Robot Schematics Acquired 1 | . . . . . . . . 1 . . . . . . . Robots Built . | . . . . . . . . . . . . . . . . Authchips . | . . . . . . . . . . . . . . . . Time . | . . . . . . . . . . . . . . . . Total Robot Build Rating . | . . . . . . . . . . . . . . . . Part Schematics Acquired 10 | . . . . 6 . 3 . 1 . . . . . . . Parts Built . | . . . . . . . . . . . . . . . . Authchips . | . . . . . . . . . . . . . . . . Time . | . . . . . . . . . . . . . . . . Total Part Build Rating . | . . . . . . . . . . . . . . . . Parts Repaired 5 | . . . 2 1 . 1 . 1 . . . . . . . Time 184 | . . . 76 32 . 44 . 32 . . . . . . . Parts Recycled . | . . . . . . . . . . . . . . . . Recycled Matter . | . . . . . . . . . . . . . . . . Retrieved Matter . | . . . . . . . . . . . . . . . . Retrieved Components 10 | . 10 . . . . . . . . . . . . . . Parts Scanalyzed 2 | . . . . . . 2 . . . . . . . . . Part Schematics Acquired 2 | . . . . . . 2 . . . . . . . . . Parts Damaged . | . . . . . . . . . . . . . . . . Bothacking | -11 -10 -10 -9 -9 -9 -8 -8 -8 -8 -7 -7 -7 -7 -6 -6 ------------ Run | Yrd Mat Min Mat Sto Gar Mat Gar Mat Gar Fac Gar Fac Gar Fac Gar Used RIF Installer . | . . . . . . . . . . . . . . . . Robots Hacked 3 | . . . . . . . . . . 1 . . 2 . . Non-combat 1 | . . . . . . . . . . 1 . . . . . Combat 2 | . . . . . . . . . . . . . 2 . . Robot Hacks Applied 4 | . . . . . . . . . . 1 . . 3 . . parse_system 3 | . . . . . . . . . . . . . 3 . . find_chute 1 | . . . . . . . . . . 1 . . . . . Relay Couplers Released 115 | . . . . . 23 . 22 . 24 . 20 . 23 . 3 Machine Destruction 115 | . . . . . 23 . 22 . 24 . 20 . 23 . 3 Fabnet Peak Effective % . | . . . . . . . . . . . . . . . . Robots Rewired 27 | . . . . . 2 . 4 . 2 . 10 . 9 . . Allies Hacked . | . . . . . . . . . . . . . . . . Hacks Repelled . | . . . . . . . . . . . . . . . . Allies | -11 -10 -10 -9 -9 -9 -8 -8 -8 -8 -7 -7 -7 -7 -6 -6 -------- Run | Yrd Mat Min Mat Sto Gar Mat Gar Mat Gar Fac Gar Fac Gar Fac Gar Total Allies 45 | . . . 1 12 2 2 4 . 2 . 10 . 12 . . Largest Group 12 | . . . 1 10 10 7 4 4 3 2 12 11 9 9 9 Highest-Rated Group 315 | . . . 10 88 122 72 84 84 78 78 315 284 242 242 242 Highest-Rated Ally 62 | . . . 10 18 25 25 21 21 39 39 43 43 62 62 62 Initial Warlord ECA Mod 318 | . . . . . . 10 10 22 22 32 32 43 43 52 52 Total Orders 7 | . . . . . . . . 2 . . 5 . . . . STAY 3 | . . . . . . . . 1 . . 2 . . . . FOLLOW 4 | . . . . . . . . 1 . . 3 . . . . Ally Attacks 389 | . . . . 22 69 25 18 68 32 4 . 66 72 . 13 Total Damage 5585 | . . . . 228 758 358 281 1049 707 . . 874 1122 . 208 Kills 61 | . . . . 4 8 6 3 15 8 . . 8 8 . 1 Allies Corrupted . | . . . . . . . . . . . . . . . . Allies Melted 1 | . . . . . 1 . . . . . . . . . . Intel | -11 -10 -10 -9 -9 -9 -8 -8 -8 -8 -7 -7 -7 -7 -6 -6 ------- Run | Yrd Mat Min Mat Sto Gar Mat Gar Mat Gar Fac Gar Fac Gar Fac Gar Active Infowar (turns) 5133 | 22 332 345 70 . . . . 383 . 138 . 710 2722 83 328 IFF 607 | . . . . . . . . . . 138 . 403 . 66 . Structural 22 | . 22 . . . . . . . . . . . . . . Seismic 747 | 22 310 345 70 . . . . . . . . . . . . Machine Analysis 4226 | . . . . . . . . 383 . . . 710 2722 83 328 Robot Analysis Total 1 | . . . . . . . . 1 . . . . . . . Derelict Logs Recovered 1 | . . 1 . . . . . . . . . . . . . Drone Launches . | . . . . . . . . . . . . . . . . Drone Recoveries . | . . . . . . . . . . . . . . . . Exploration | -11 -10 -10 -9 -9 -9 -8 -8 -8 -8 -7 -7 -7 -7 -6 -6 ------------- Run | Yrd Mat Min Mat Sto Gar Mat Gar Mat Gar Fac Gar Fac Gar Fac Gar Turns Passed 19771 | 243 1404 481 2168 1792 1240 2339 1398 1019 1636 202 1464 712 2722 83 868 Spaces Moved 10229 | 144 982 354 1153 994 677 1016 676 570 701 127 895 481 1110 54 295 Core 1 | 1 . . . . . . . . . . . . . . . Treads . | . . . . . . . . . . . . . . . . Legs . | . . . . . . . . . . . . . . . . Wheels 10228 | 143 982 354 1153 994 677 1016 676 570 701 127 895 481 1110 54 295 Hover . | . . . . . . . . . . . . . . . . Flight . | . . . . . . . . . . . . . . . . Fastest Speed 50 | 50 80 110 110 145 145 115 145 150 150 120 120 135 135 120 108 Average Speed 133 | 79 100 110 142 145 145 126 149 150 150 120 133 135 135 120 125 Slowest Speed 165 | 80 110 110 155 145 145 145 150 150 150 120 135 135 135 120 165 Overloaded Moves . | . . . . . . . . . . . . . . . . Propulsion Burnouts . | . . . . . . . . . . . . . . . . Robots Hopped . | . . . . . . . . . . . . . . . . Potential Cave-ins . | . . . . . . . . . . . . . . . . Cave-ins Triggered . | . . . . . . . . . . . . . . . . Exploration Rate (%) 61 | 6 99 59 77 96 86 84 89 58 78 4 98 17 96 2 28 Regions Visited 15 Branch Regions 2 Pre-discovered Areas 1 | . . 1 . . . . . . . . . . . . . Known Exits Taken 7 | . . . 1 1 . 1 . 1 . 1 . 1 . 1 . Unknown Exits Taken 3 | 1 1 1 . . . . . . . . . . . . . Scrap Searched 2 | . . 2 . . . . . . . . . . . . . Spaces Dug 106 | . 10 . 15 . 11 4 4 1 18 . 4 9 23 . 7 Terrain Destroyed 306 | . 16 . 64 27 16 8 4 20 38 . 4 41 60 . 8 Melee 49 | . 10 . 1 . . 3 4 1 . . 4 . 19 . 7 Projectile 80 | . . . 25 9 . 5 . 8 5 . . 5 22 . 1 AOE 176 | . 6 . 38 18 16 . . 11 32 . . 36 19 . . Terrain Rammed . | . . . . . . . . . . . . . . . . Walls Destroyed . | . . . . . . . . . . . . . . . . Machines Disabled . | . . . . . . . . . . . . . . . . Actions | -11 -10 -10 -9 -9 -9 -8 -8 -8 -8 -7 -7 -7 -7 -6 -6 --------- Run | Yrd Mat Min Mat Sto Gar Mat Gar Mat Gar Fac Gar Fac Gar Fac Gar Total 13878 | 225 1224 427 1549 1198 849 1885 883 669 964 160 1068 517 1683 71 506 Wait 1371 | 34 54 33 247 91 29 700 11 38 10 7 36 6 49 14 12 Move 10217 | 143 981 353 1152 993 676 1015 675 570 699 127 894 481 1109 54 295 Hop . | . . . . . . . . . . . . . . . . Pick Up 224 | 13 37 9 31 16 1 32 9 9 15 3 13 4 25 . 7 Fast Attach 42 | 6 6 . 3 2 . 1 . 2 . . 6 . 3 . 13 Attach 60 | 1 6 . 4 4 . 5 2 3 3 5 3 . 5 2 17 Detach 6 | . . . . . . . . . . . 3 . . . 3 Swap 260 | 1 23 9 25 10 18 19 25 11 24 3 20 7 55 1 9 Drop 218 | 4 23 11 24 16 1 35 12 10 17 6 23 5 29 . 2 Fire 1051 | 23 83 12 57 66 28 74 67 23 154 9 34 14 285 . 122 Melee 136 | . 11 . 6 . 17 4 18 3 1 . 24 . 35 . 17 Ram . | . . . . . . . . . . . . . . . . Kick . | . . . . . . . . . . . . . . . . Crush . | . . . . . . . . . . . . . . . . Escape Stasis 246 | . . . . . 62 . 64 . 32 . . . 79 . 9 Rewire 22 | . . . . . 17 . . . . . 4 . 1 . . Trap . | . . . . . . . . . . . . . . . . Miscellaneous 25 | . . . . . . . . . 9 . 8 . 8 . . Route ------- -11/Scrapyard -10/Materials (discovered 6 exits: *Mat x3 / [*Min x2] / [*Sub]) -10/Mines (discovered 2 exits: *Mat x2) -9/Materials (discovered 7 exits: *Mat x3 / *Min x2 / *Sto x2) -9/Storage (discovered 3 exits: *Mat / Rec / Gar) -9/Garrison (discovered 3 exits: *Mat x3) -8/Materials (discovered 4 exits: *Fac x3 / Gar) -8/Garrison (discovered 3 exits: *Mat x3) -8/Materials (discovered 2 exits: *Fac / Gar) -8/Garrison (discovered 3 exits: *Fac x3) -7/Factory (discovered 2 exits: *Fac / Gar) -7/Garrison (discovered 4 exits: *Fac x4) -7/Factory -7/Garrison (discovered 3 exits: *Fac x3) -6/Factory (discovered 2 exits: [*Fac] / Gar) -6/Garrison History --------- Turn | Location | Event 4 | -11/Scrapyard | Discovered new exit (range 16) 244 | -11/Scrapyard | Entered Materials 312 | -10/Materials | Build established: Mutant 347 | -10/Materials | Discovered new exit (range 11) 544 | -10/Materials | Discovered new exit (range 8) 795 | -10/Materials | Discovered new exit (range 6) 971 | -10/Materials | Discovered new exit (range 9) 1097 | -10/Materials | Discovered new exit (range 5) 1189 | -10/Materials | Discovered new exit (range 7) 1244 | -10/Materials | Derelicts attacked the area 1342 | -10/Materials | Core integrity fell below 50% 1363 | -10/Materials | Core integrity fell below 20% 1390 | -10/Materials | Lost 3 parts (2n1u) 1648 | -10/Materials | Entered Mines 1775 | -10/Mines | Discovered new exit (range 9) 1820 | -10/Mines | Learned location of Recycling (-9) 1988 | -10/Mines | Discovered new exit (range 15) 2033 | -10/Mines | Deemed a non-threat by the Exiles lab entrance 2129 | -10/Mines | Entered Materials 2129 | -9/Materials | Evolved 2 slots: Weapon x2 2541 | -9/Materials | Build established: Gunner 2720 | -9/Materials | Discovered new exit (range 2) 2846 | -9/Materials | Discovered new exit (range 9) 2849 | -9/Materials | Identified exit to Mines 2849 | -9/Materials | Identified exit to Storage 3477 | -9/Materials | Discovered new exit (range 4) 3489 | -9/Materials | Learned Recycling recycling unit intel 3518 | -9/Materials | Learned location of 1 exit from Storage 3537 | -9/Materials | Identified exit to Materials 3545 | -9/Materials | Learned 4 Recycling zone layouts 3915 | -9/Materials | Repaired Assault Cannon 3955 | -9/Materials | Repaired Recoil Stabilizer 4297 | -9/Materials | Entered Storage 4299 | -9/Storage | Identified exit to Recycling 4685 | -9/Storage | Repaired Arm. Wheel 5135 | -9/Storage | Garrison activated, responded to threat 5171 | -9/Storage | Identified exit to Garrison 5804 | -9/Storage | Assisted by bots powering up and referring to "LRC-V3" 6042 | -9/Storage | Garrison activated, responded to threat 6089 | -9/Storage | Entered Garrison 6089 | -9/Garrison | Accompanied by 10 allies 6105 | -9/Garrison | Build established: Commander-Gunner 6253 | -9/Garrison | Lost 3 allies 6257 | -9/Garrison | Triggered checkpoint 6282 | -9/Garrison | Garrison Relay disabled 6425 | -9/Garrison | Triggered checkpoint 6437 | -9/Garrison | Triggered checkpoint 6462 | -9/Garrison | Triggered checkpoint 6657 | -9/Garrison | Garrison Relay disabled 6895 | -9/Garrison | Garrison Relay disabled 6934 | -9/Garrison | Triggered checkpoint 6982 | -9/Garrison | Garrison Relay disabled 7190 | -9/Garrison | Triggered checkpoint 7219 | -9/Garrison | Garrison Relay disabled 7262 | -9/Garrison | Learned Materials security intel 7329 | -9/Garrison | Entered Materials 7329 | -8/Materials | Accompanied by 7 allies 7329 | -8/Materials | Evolved 2 slots: Utility x1, Weapon x1 7477 | -8/Materials | Lost 3 allies 7727 | -8/Materials | Lost 4 allies 7833 | -8/Materials | Discovered new exit (range 14) 7972 | -8/Materials | Build established: Gunner 8373 | -8/Materials | Repaired Broken Arm. Wheel 8534 | -8/Materials | Discovered new exit (range 11) 8854 | -8/Materials | Discovered new exit (range 9) 8895 | -8/Materials | Identified exit to Garrison 9668 | -8/Materials | Entered Garrison 9668 | -8/Garrison | Accompanied by 2 allies 9789 | -8/Garrison | Garrison Relay disabled 10190 | -8/Garrison | Garrison Relay disabled 10257 | -8/Garrison | Discovered new exit (range 10) 10332 | -8/Garrison | Triggered checkpoint 10367 | -8/Garrison | Triggered checkpoint 10405 | -8/Garrison | Garrison Relay disabled 10442 | -8/Garrison | Triggered checkpoint 10483 | -8/Garrison | Garrison Relay disabled 10552 | -8/Garrison | Discovered new exit (range 10) 10764 | -8/Garrison | Learned Materials security intel 10764 | -8/Garrison | Identified exit to Materials 10886 | -8/Garrison | Garrison Relay disabled 10888 | -8/Garrison | Triggered checkpoint 10958 | -8/Garrison | Triggered checkpoint 10981 | -8/Garrison | Garrison Relay disabled 11066 | -8/Garrison | Entered Materials 11066 | -8/Materials | Accompanied by 4 allies 11363 | -8/Materials | Repaired Cooling System 11425 | -8/Materials | Build established: Scavenger-Gunner 11452 | -8/Materials | Discovered new exit (range 11) 12085 | -8/Materials | Identified exit to Garrison 12085 | -8/Materials | Entered Garrison 12085 | -8/Garrison | Accompanied by 3 allies 12200 | -8/Garrison | Triggered checkpoint 12248 | -8/Garrison | Garrison Relay disabled 12297 | -8/Garrison | Triggered checkpoint 12321 | -8/Garrison | Garrison Relay disabled 12463 | -8/Garrison | Triggered checkpoint 12465 | -8/Garrison | Triggered checkpoint 12507 | -8/Garrison | Triggered checkpoint 12528 | -8/Garrison | Triggered checkpoint 13047 | -8/Garrison | Discovered new exit (range 13) 13176 | -8/Garrison | Garrison Relay disabled 13178 | -8/Garrison | Garrison Relay disabled 13258 | -8/Garrison | Discovered new exit (range 14) 13258 | -8/Garrison | Discovered new exit (range 75) 13258 | -8/Garrison | Discovered new exit (range 78) 13409 | -8/Garrison | Garrison Relay disabled 13464 | -8/Garrison | Identified exit to Factory 13482 | -8/Garrison | Triggered checkpoint 13568 | -8/Garrison | Phase Generator disabled 13594 | -8/Garrison | Garrison Relay disabled 13721 | -8/Garrison | Entered Factory 13721 | -7/Factory | Accompanied by 2 allies 13721 | -7/Factory | Evolved 2 slots: Utility x1, Weapon x1 13773 | -7/Factory | Discovered new exit (range 8) 13872 | -7/Factory | Garrison activated, responded to threat 13918 | -7/Factory | Identified exit to Garrison 13923 | -7/Factory | Entered Garrison 13923 | -7/Garrison | Discovered recently destroyed garrison 13923 | -7/Garrison | Accompanied by 2 allies 14010 | -7/Garrison | Garrison Relay disabled 14021 | -7/Garrison | Build established: Scavenger-Executioner 14214 | -7/Garrison | Identified exit to Factory 14354 | -7/Garrison | Garrison Relay disabled 14478 | -7/Garrison | Discovered exit to Factory (range 7) 14584 | -7/Garrison | Garrison Relay disabled 14587 | -7/Garrison | Build established: Commander-Executioner 14799 | -7/Garrison | Garrison Relay disabled 14868 | -7/Garrison | Garrison Relay disabled 15387 | -7/Garrison | Entered Factory 15387 | -7/Factory | Accompanied by 11 allies 15787 | -7/Factory | First assault squad dispatched 15878 | -7/Factory | Lost 4 allies 15881 | -7/Factory | Destroyed 7 combat bots 16072 | -7/Factory | Garrison activated, responded to threat 16097 | -7/Factory | Identified exit to Garrison 16099 | -7/Factory | Entered Garrison 16099 | -7/Garrison | Accompanied by 4 allies 16123 | -7/Garrison | Triggered checkpoint 16154 | -7/Garrison | Garrison Relay disabled 16450 | -7/Garrison | P-60 Hacker assimilated allied F5-8RC(h) 16494 | -7/Garrison | Destroyed 8 combat bots 16516 | -7/Garrison | Triggered checkpoint 16544 | -7/Garrison | Build established: Executioner 16617 | -7/Garrison | Destroyed 10 combat bots 16721 | -7/Garrison | Triggered checkpoint 16917 | -7/Garrison | Build established: Scavenger-Executioner 16933 | -7/Garrison | Triggered checkpoint 17001 | -7/Garrison | Garrison Relay disabled 17015 | -7/Garrison | Triggered checkpoint 17043 | -7/Garrison | Discovered new exit (range 10) 17051 | -7/Garrison | Triggered checkpoint 17168 | -7/Garrison | Garrison Relay disabled 17250 | -7/Garrison | Found embedded Infiltrators 17791 | -7/Garrison | Identified exit to Factory 17898 | -7/Garrison | Garrison Relay disabled 18098 | -7/Garrison | Triggered checkpoint 18247 | -7/Garrison | Garrison Relay disabled 18369 | -7/Garrison | Triggered checkpoint 18397 | -7/Garrison | Triggered checkpoint 18751 | -7/Garrison | Rescued a captive Derelict 18796 | -7/Garrison | Build established: Commander-Executioner 18821 | -7/Garrison | Entered Factory 18821 | -6/Factory | Accompanied by 9 allies 18821 | -6/Factory | Evolved 2 slots: Propulsion x1, Utility x1 18839 | -6/Factory | Discovered new exit (range 10) 18890 | -6/Factory | Identified exit to Garrison 18904 | -6/Factory | Entered Garrison 18904 | -6/Garrison | Accompanied by 9 allies 18943 | -6/Garrison | Triggered checkpoint 19041 | -6/Garrison | Garrison Relay disabled 19115 | -6/Garrison | Build established: Scavenger-Executioner 19125 | -6/Garrison | Triggered checkpoint 19168 | -6/Garrison | Lost 7 allies 19230 | -6/Garrison | Destroyed 9 combat bots 19269 | -6/Garrison | Core integrity fell below 50% 19305 | -6/Garrison | Lost 19 parts (2p3n1u13w) 19329 | -6/Garrison | Core integrity fell below 20% 19393 | -6/Garrison | Lost 3 parts (3w) 19772 | -6/Garrison | Destroyed by Y-54 Guardian with Gatling Laser Last Messages --------------- 19722_ IS=L6ITZI,U OS44WRZLD7W 19722_ Acquired 10 matter. 19737_ C-30 ARC suffers critical hit (Destroy). 19737_ Destroyed Imp. Ion Engine. 19738_ C-30 ARC bursts open, deploying its payload. 19738_ G-67 Veteran unfolds itself. 19738_ G-50 Soldier unfolds itself. 19740_ Acquired 4 matter. 19750_ Slug penetrates Wall. 19750_ G-50 Soldier destroyed. 19755_ Slug penetrates G-67 Veteran. 19758_ Critical hit (Burn: +36). 19759_ Slug penetrates G-67 Veteran. 19759_ G-67 Veteran destroyed. 19760_ Acquired 34 matter. 19764_ Slug penetrates G-50 Soldier. 19765_ Acquired 7 matter. 19769_ Slug penetrates G-50 Soldier. 19770_ Acquired 7 matter. 19770_ G-50 Soldier heat damages Carbon-fiber Leg. Map ----- +----------------------------------------------------+ | ?????????????????????????????????????????????????? | | ?????????????????????????????????????????????????? | | ?????????????????????????????????????????????????? | | ?????????????????????????????????????????????????? | | ?????????????????????????????????????????????????? | | ?????????????????????????????????????????????????? | | ?????????????????????????????????????????????????? | | ?????????????????????????????????????????????????? | | ?????????????????????????????????????????????????? | | ?????????????????????????????????????????????????? | | ?????????????????????????????????????????????????? | | ?????????????????????????????????????????????????? | | ?????????????????????????????????????????????????? | | ?????????????????????????????????????????????????? | | ?????????????????????????????????????????????????? | | ???????????????????????####??????####????????????? | | ??????????????????????? ?????? #????????????? | | ??????????????????????? ?????? #????????????? | | ???????????????????????# #??????# #????????????? | | ???????????????????????# #??????# #????????????? | | ???????????????????????# #??????# #????????????? | | ???????????????????????#^^#??????# #????????????? | | ???????????????????????# #??????# !#????????????? | | ???????????????????????# ;??????# #??####???#??? | | ???????????????????????# #??????# #? #? #??? | | ???????????????????????# @#?????## ## ## ##?? | | ???????????????????????#gY####### * #?? | | ???????????????????????#[%= !% #?? | | ???????????????????????# =%= %= #?? | | ???????????????????????########## ## ## #?? | | ??????????????????????????????### ## ## ### | | ??????????????????????????????#% ^ # | | ??????????????????????????????# * # | | ???????????????????#?########## * ^ # | | ???????????????????# # ##% *= ^ # | | ????????????????????# # # #### ## ## ##? | | ???????????????????####### ####= ## ## ### | | ???????????????????# = | | ??????????????????# * = | | ??????????????????### =## ##### ##? | | ????????????????????###= ## #??##"### !######?? | | ?????????????????????# # ###???# #?# #??????? | | ?????????????????????## ###?????# #?######??????? | | ??????????????????????# ######### #?????????????? | | ??????????????????????# # #?????????????? | | ??????????????????????# ######### ##????????????? | | ??????????????????????# #???????# "#????????????? | | ??????????????????????# #???????# T#????????????? | | ??????????????????????# #???????#""#????????????? | | ?????????????########## ##??????####????????????? | +----------------------------------------------------+ Best States ------------- Heat Dissipation 64 Coolant Potential 80 Energy Generation 23 Energy Capacity 800 Matter Stores 300 Matter Capacity 500 Sight Range 16 Terrain Scan Density 10 Corruption Block 15 Armor Coverage 150 Core Shielding 20 Evasion (%) 44 Targeting Accuracy 8 Recoil Reduction 6 Salvage Targeting 1 Offensive Hacking 14 Authchip Count 1 Item Schematics ----------------- Arm. Huge Wheel | -9/Storage | Hacked Hpw. Tractor Beam | -9/Storage | Hacked Adv. Targeting Computer | -9/Storage | Hacked Wheel | -9/Storage | Hacked Targeting Computer | -9/Storage | Hacked Recoil Stabilizer | -9/Storage | Hacked Hvy. Assault Rifle | -8/Materials | Scanalyzed Huge Storage Unit | -8/Materials | Scanalyzed Assault Rifle | -8/Materials | Hacked Heat Sink | -8/Materials | Hacked Robot Schematics ------------------ M-28 Smith | -8/Materials | Hacked Fabricated ------------ Nothing Repaired ---------- Assault Cannon | 36% | -9/Materials Recoil Stabilizer | 60% | -9/Materials Arm. Wheel | 46% | -9/Storage Arm. Wheel | 37% | -8/Materials | Broken Cooling System | 20% | -8/Materials Alien Tech Used ----------------- None Achievements -------------- None Challenges ------------ None Game ------ Seed TeslaCouplerShredder Manual? 0 Play Time 02:56:54 Cumulative 1229.6 hours Start 2025.08.10 @ 14:03:00 End 2025.08.10 @ 19:27:26 Sessions 5 Manual Loads 0 Difficulty Rogue Special Mode None Game No. 588 Rogue 588 Adventurer 0 Explorer 0 Win Type - Total 23 Types 10/4/3/0/1/1/2/2/0/0 Lore% 91 Gallery% 90 Achievement% 84 Wizard Run 0 Options --------- Layout 0 ASCII 0 Keyboard 0 Movement Numpad Keybinds 0 Fullscreen 2 Font 24/Smallcaps Map View 76x50 Zoom Use 0% Tactical HUD 1 Map Filters NONE Filters SHIFT_HUE(315) Steam 1 RUN: 167ab694-816e-457b-8142-7e62c64d45bd